[Event "26th Womens ECCC 2022"]
[Site "Mayrhofen"]
[Date "2022.10.09"]
[Round "7.14"]
[White "Roebers, Eline"]
[Black "Unuk, Laura"]
[Result "1-0"]
[ECO "C78"]
[WhiteElo "2352"]
[BlackElo "2297"]
[Annotator "TA"]
[PlyCount "79"]
[EventDate "2022.10.03"]
[EventType "team-tourn"]
[EventCountry "AUT"]
[SourceTitle "playchess.com"]
[Source "ChessBase"]
[SourceQuality "1"]
[TimeControl "40/5400+30:1800+30"]

{[%evp 17,79,42,33,2,12,13,4,28,11,14,11,0,15,6,18,16,8,14,14,8,10,10,11,11,8,-13,0,0,267,261,404,393,268,275,251,258,818,798,1474,879,865,861,1289,1288,1282,1265,1214,1205,2573,2513,29987,2831,29988,29989,29989,29990,29990,29991,29993,29992,29994,29993,29993,29994]} 1. e4 {[%emt 0:00:02] Szabo,Kr} e5 {[%emt 0:00:13]} 2. Nf3 {[%emt 0:00:04]} Nc6 {[%emt 0:00:07]} 3. Bb5 {[%emt 0:00:03]} a6 {[%emt 0:00:35]} 4. Ba4 {[%emt 0:00:04]} Nf6 {[%emt 0:00:29]} 5. O-O {[%emt 0:00:06]} b5 {[%emt 0:00:29]} 6. Bb3 {[%emt 0:00:04]} Bc5 {[%emt 0:00:04][%cal Bf8c5,Bc5b6,Bb6a7][%mdl 32]} 7. c3 {[%emt 0:00:29]} d6 {[%emt 0:00:16]} 8. a4 {[%emt 0:00:55]} Rb8 {[%emt 0:01:10]} 9. d4 {[%emt 0:00:06]} Bb6 {[%emt 0:00:04]} 10. a5 {[%emt 0:01:40] C78: Ruy Lopez: Archangelsk and Möller Defences.} Ba7 {[%emt 0:01:11]} (10... Nxa5 11. Rxa5 Bxa5 12. dxe5) (10... Bxa5 $2 11. dxe5 (11. d5 Ne7 $18) 11... dxe5 12. Qxd8+ Kxd8 13. Bd5 (13. Bxf7 Bb6 $16) 13... Nxd5 14. exd5 $18) 11. h3 {[%emt 0:00:29]} O-O {[%emt 0:00:36]} 12. Be3 {[%emt 0:00:58] The position is equal.} Ra8 {[%emt 0:01:29]} 13. Nbd2 {[%emt 0:01:06]} h6 {[%emt 0:01:28]} 14. Re1 {[%emt 0:00:20]} exd4 {[%emt 0:00:49]} 15. cxd4 {[%emt 0:03:01]} Nb4 {[%emt 0:00:37]} 16. e5 {[%emt 0:27:55]} Nfd5 {[%emt 0:01:09] [#]} 17. exd6 $146 {[%emt 0:02:36]} ({Predecessor:} 17. Ne4 Nxe3 18. Rxe3 Bb7 19. e6 Nd5 20. exf7+ Kh8 21. Re1 Rxf7 22. Rc1 Rc8 23. Nfg5 {1-0 (32) Caruana,F (2799)-Jones,G (2668) Douglas 2017 CBM 181 [Szabo,Kr]}) 17... cxd6 {[%emt 0:18:13]} 18. Ne4 {[%emt 0:00:05]} Nxe3 {[%emt 0:00:45]} 19. Rxe3 {[%emt 0:00:42]} Bb7 {[%emt 0:02:30]} 20. Qd2 {[%emt 0:04:11]} Nd5 {[%emt 0:03:51]} 21. Ree1 {[%emt 0:01:47]} Rc8 {[%emt 0:01:44]} 22. Ng3 {[%emt 0:01:27]} Qf6 $2 {[%emt 0:20:38][%mdl 8192] [#] Prevents Nf5. Black is now going downhill.} (22... Rc7 $11) 23. Re4 $1 $18 {[%emt 0:01:11] And now Rg4 would win.} g5 {[%emt 0:03:14]} (23... h5 $142 24. Nxh5 Qg6) 24. h4 {[%emt 0:09:59][%cal Rh4g5]} Nf4 {[%emt 0:01:29]} 25. hxg5 {[%emt 0:00:05]} hxg5 {[%emt 0:08:01]} 26. Nxg5 {[%emt 0:00:15] Chess con chili.} Ng6 $2 {[%emt 0:25:08]} (26... Qxg5 27. Qxf4 Qxf4 28. Rxf4 Rce8 29. Rg4+ Kh8 30. Rh4+ Kg8) 27. Rg4 {[%emt 0:02:07]} Rc7 {[%emt 0:01:24]} 28. N5e4 {[%emt 0:01:23]} Bxe4 {[%emt 0:00:39]} 29. Nxe4 {[%emt 0:00:13] Intending Qh6 and mate.} Qf5 {[%emt 0:01:52] [#]} 30. Qh6 $1 {[%emt 0:01:06] Rxg6+ would kill now.} Rc4 {[%emt 0:02:06]} 31. Bxc4 {[%emt 0:00:57]} bxc4 {[%emt 0:00:05] [#]} 32. Ng5 $1 {[%emt 0:01:03][%csl Gg5][%cal Rh6h7]} Rb8 {[%emt 0:00:23] [#]} (32... Re8 33. Rg3) 33. Re1 $1 {[%emt 0:01:39] Threatening mate with Qh7+.} d5 {[%emt 0:03:37]} (33... Bxd4 34. Rxd4) 34. Qh7+ {[%emt 0:01:00]} Kf8 {[%emt 0:00:02] [#]} 35. Ne6+ $1 {[%emt 0:00:13][%mdl 512] White mates.} fxe6 {[%emt 0:00:40]} 36. Rxg6 {[%emt 0:00:05][%csl Gh7][%cal Rg6g8]} Qf7 {[%emt 0:00:34]} 37. Qh6+ {[%emt 0:00:12]} Ke8 {[%emt 0:00:42]} 38. Rgxe6+ {[%emt 0:00:51]} Kd8 {[%emt 0:00:30]} 39. Qg5+ {[%emt 0:00:27]} Kc8 {[%emt 0:00:19]} 40. Qxd5 {[%emt 0:00:06] Weighted Error Value: White=0.05 (flawless) /Black=0.47} 1-0

[Event "26th Womens ECCC 2022"]
[Site "Mayrhofen"]
[Date "2022.10.09"]
[Round "7.15"]
[White "Urh, Zala"]
[Black "Wagner, Dinara"]
[Result "1/2-1/2"]
[ECO "D38"]
[WhiteElo "2221"]
[BlackElo "2390"]
[Annotator "TA"]
[PlyCount "51"]
[EventDate "2022.10.03"]
[EventType "team-tourn"]
[EventCountry "AUT"]
[SourceTitle "playchess.com"]
[Source "ChessBase"]
[SourceQuality "1"]
[TimeControl "40/5400+30:1800+30"]

{[%evp 22,51,13,12,20,18,27,15,18,18,18,18,18,18,18,18,18,18,18,18,18,18,18,18,35,25,46,0,45,0,45,0]} 1. d4 {[%emt 0:00:04]} Nf6 {[%emt 0:00:06]} 2. c4 {[%emt 0:00:04]} e6 {[%emt 0:00:03]} 3. Nf3 {[%emt 0:00:04]} d5 {[%emt 0:00:17]} 4. Nc3 {[%emt 0:00:06]} Bb4 {[%emt 0:00:05]} 5. Bg5 {[%emt 0:00:05]} h6 {[%emt 0:00:22]} 6. Bxf6 {[%emt 0:00:53]} Qxf6 {[%emt 0:00:13]} 7. e3 {[%emt 0:00:04]} O-O {[%emt 0:00:26]} 8. Qb3 {[%emt 0:00:14]} c5 {[%emt 0:01:39]} 9. cxd5 {[%emt 0:00:19]} exd5 {[%emt 0:00:12]} 10. dxc5 {[%emt 0:00:07]} Bxc3+ {[%emt 0:00:20]} 11. Qxc3 {[%emt 0:00:09]} Qxc3+ {[%emt 0:00:04]} 12. bxc3 {[%emt 0:00:06]} Be6 {[%emt 0:00:35] D38: Queen's Gambit Declined: Ragozin Defence (4 Nf3 Bb4).} 13. Bb5 {[%emt 0:01:31]} Rc8 {[%emt 0:00:52]} 14. Nd4 {[%emt 0:02:13]} Rxc5 {[%emt 0:01:25] The position is equal.} 15. Kd2 {[%emt 0:00:32]} a6 {[%emt 0:00:43]} 16. Bd3 {[%emt 0:10:10]} Nd7 {[%emt 0:01:16]} 17. Rhb1 {[%emt 0:03:13]} Rc7 {[%emt 0:11:08]} 18. a4 {[%emt 0:02:34]} Rac8 {[%emt 0:02:25]} 19. Ra3 {[%emt 0:01:11]} Kf8 {[%emt 0:11:45]} 20. a5 {[%emt 0:03:51] [#]} Nc5 $146 {[%emt 0:04:45]} ({Predecessor:} 20... Ke7 21. Rb4 g6 22. h4 h5 23. Be2 Nf6 24. Bf3 Ne8 25. c4 Nd6 26. cxd5 Bd7 {½-½ (34) Leko,P (2717)-Wang,H (2718) Ningbo 2011}) 21. Bc2 {[%emt 0:07:06]} Ke7 {[%emt 0:03:43]} 22. f3 {[%emt 0:05:37]} Bd7 {[%emt 0:10:16]} 23. Rb4 {[%emt 0:05:05]} Be6 {[%emt 0:03:28]} 24. Rb1 {[%emt 0:09:34]} Bd7 {[%emt 0:00:06]} 25. Rb4 {[%emt 0:04:05]} Be6 {[%emt 0:00:05]} 26. Rb1 {[%emt 0:00:02] Weighted Error Value: White=0.08 (flawless) /Black=0.03 (flawless)} 1/2-1/2

[Event "26th Womens ECCC 2022"]
[Site "Mayrhofen"]
[Date "2022.10.09"]
[Round "7.16"]
[White "Heinemann, Josefine"]
[Black "Vidic, Teja"]
[Result "1/2-1/2"]
[ECO "C55"]
[WhiteElo "2318"]
[BlackElo "2126"]
[Annotator "TA"]
[PlyCount "95"]
[EventDate "2022.10.03"]
[EventType "team-tourn"]
[EventCountry "AUT"]
[SourceTitle "playchess.com"]
[Source "ChessBase"]
[SourceQuality "1"]
[TimeControl "40/5400+30:1800+30"]

{[%evp 10,95,43,24,27,31,35,19,39,15,37,19,27,28,46,40,33,28,106,106,101,94,147,157,189,166,166,164,179,162,240,145,117,130,240,236,253,223,365,305,366,358,356,336,399,409,390,379,741,660,820,762,748,316,318,166,202,181,172,0,0,0,158,0,0,0,0,0,0,0,0,0,0,0,0,0,0,0,0,0,0,0,0,0,0,0,0,0]} 1. e4 {[%emt 0:00:03]} e5 {[%emt 0:00:10]} 2. Nf3 {[%emt 0:00:08]} Nc6 {[%emt 0:00:06]} 3. Bc4 {[%emt 0:00:05]} Nf6 {[%emt 0:00:07]} 4. d3 {[%emt 0:00:05]} h6 {[%emt 0:00:08]} 5. O-O {[%emt 0:01:02]} d6 {[%emt 0:00:33]} 6. a4 {[%emt 0:00:48]} g5 {[%emt 0:00:31] C55: Two Knights: 4 d3, 4 d4 exd4 5 e5 and Max Lange Attack.} 7. Nc3 {[%emt 0:01:52]} Bg7 {[%emt 0:05:26]} 8. a5 {[%emt 0:02:01]} a6 {[%emt 0:00:32]} 9. Re1 {[%emt 0:01:57]} O-O {[%emt 0:01:44]} 10. Be3 {[%emt 0:04:21] [#]} Bg4 $146 {[%emt 0:11:47][%cal Oc6d4,Bc8g4,Bg4h5,Bh5g6][%mdl 32]} ({Predecessor:} 10... Kh8 11. Nd5 Nh7 12. c3 f5 13. exf5 Bxf5 14. d4 Bg4 15. Be2 Be6 16. dxe5 g4 {0-1 (27) Piorun,K (2641)-Robson,R (2676) Chess.com INT 2022}) 11. h3 {[%emt 0:09:52]} Bh5 {[%emt 0:00:50]} 12. Nd5 {[%emt 0:01:45]} (12. g4 $5 {[%cal Rg4h5]} Bg6 13. Bb3 $11) 12... Nxd5 {[%emt 0:08:36]} 13. Bxd5 {[%emt 0:00:09]} Qf6 {[%emt 0:01:03]} (13... Re8 $11 {keeps the balance.}) 14. g4 $16 {[%emt 0:09:09][%cal Bg2g4,Bg4g5][%mdl 32]} Bg6 {[%emt 0:00:09]} 15. h4 $36 {[%emt 0:00:42][%cal Rh4g5][%mdl 2048] Black is under strong pressure.} gxh4 {[%emt 0:03:00] [#]} ({Black should play} 15... Nd4 16. Nxd4 (16. Bxd4 exd4 17. h5 Bh7 $11) 16... exd4 17. hxg5 hxg5) 16. g5 $1 {[%emt 0:00:14] White is more active.} Qd8 {[%emt 0:09:36]} (16... hxg5 $2 17. Bxg5 Bh5 18. Bxf6 $18) 17. Nxh4 {[%emt 0:02:54]} Kh7 {[%emt 0:01:05]} 18. Kg2 {[%emt 0:04:52]} Ne7 {[%emt 0:04:20]} 19. Nxg6 {[%emt 0:03:27]} Nxg6 {[%emt 0:01:50]} (19... fxg6 $142 20. Bxb7 Rb8) 20. Bxb7 {[%emt 0:03:50][%cal Bd5b7,Bb7a6,Ba6c4][%mdl 32]} Rb8 {[%emt 0:00:15]} 21. Bxa6 {[%emt 0:00:17]} f5 {[%emt 0:02:03]} (21... Nf4+ $16 {was worth a try.} 22. Bxf4 exf4) 22. Qh5 $18 {[%emt 0:08:06]} f4 {[%emt 0:04:08]} 23. Bc1 {[%emt 0:02:53]} d5 {[%emt 0:03:21]} (23... c6 $142 24. Rh1 d5 25. gxh6 Bf6) 24. exd5 {[%emt 0:03:26] Black must now prevent gxh6.} Qxd5+ {[%emt 0:04:20]} 25. Kf1 {[%emt 0:01:28]} Rf5 {[%emt 0:04:56]} 26. Bc4 {[%emt 0:01:54]} Qc6 {[%emt 0:02:06]} 27. a6 {[%emt 0:02:18]} Rxg5 {[%emt 0:00:23]} 28. Qh3 {[%emt 0:00:10] Inhibits Qg2+.} Ne7 $2 {[%emt 0:15:34]} (28... Ra8 29. Bd2 Ra7) 29. Bxf4 {[%emt 0:06:53]} exf4 {[%emt 0:02:15]} 30. Rxe7 {[%emt 0:00:56] [#] Threatens to win with a7.} Qg6 {[%emt 0:03:22]} 31. Ra2 {[%emt 0:05:39]} (31. a7 $142 Ra8 32. Qh1) 31... Re8 {[%emt 0:04:41]} 32. Rxe8 {[%emt 0:00:15]} (32. Re6 $142 Rxe6 33. Bxe6 (33. Qxe6 Rg1+ 34. Ke2 Qh5+)) 32... Rg1+ {[%emt 0:00:40]} 33. Ke2 {[%emt 0:00:05] White wants to mate with Bg8+.} Qxe8+ {[%emt 0:00:18]} 34. Kf3 {[%emt 0:07:01]} (34. Qe6 $2 Qh5+) 34... Qc6+ $1 {[%emt 0:00:30]} 35. Ke2 {[%emt 0:00:05]} Qe8+ {[%emt 0:01:10]} 36. Kf3 $2 {[%emt 0:00:38]} (36. Qe6 $2 {leads to mate.} Qh5+) ({Only move:} 36. Be6 $16 Rg6 37. Kd2 (37. Qf5 Kh8 $17) 37... Rxe6 38. Qf3 (38. Qf5+ Kh8 $17)) 36... Qc6+ $1 $11 {[%emt 0:00:05] The position is equal.} 37. Kxf4 {[%emt 0:10:27] Strongly threatening Qf5+.} Qd6+ {[%emt 0:00:12]} 38. Kf3 {[%emt 0:00:04]} Qf6+ {[%emt 0:01:04]} 39. Ke2 {[%emt 0:00:18] And now Bd5 would win.} Qe5+ {[%emt 0:00:19]} 40. Qe3 {[%emt 0:03:23] Intending Qxe5 and mate.} Qh5+ {[%emt 0:00:16]} 41. Qf3 $1 {[%emt 0:30:04]} ({Wrong is} 41. f3 $2 Rg2+ 42. Kd1 Qh1+ 43. Qe1 Rg1 44. Qxg1 Qxg1+ 45. Ke2 Qg2+ 46. Ke1 Qg3+ 47. Kd2 Qf2+ 48. Kd1 Qg1+ 49. Ke2 Qg2+ 50. Ke3 Qg3 $19) 41... Re1+ $1 {[%emt 0:31:50]} 42. Kxe1 {[%emt 0:00:09]} Qxf3 {[%emt 0:00:04]} 43. a7 {[%emt 0:00:04]} Bd4 $1 {[%emt 0:04:37]} 44. a8=Q {[%emt 0:00:18][%csl Gc4][%cal Ra8g8]} Qxf2+ {[%emt 0:00:29]} 45. Kd1 {[%emt 0:00:04][%csl Gc4][%cal Ra8g8]} Qf1+ {[%emt 0:01:23]} 46. Kd2 {[%emt 0:00:04][%csl Gc4][%cal Ra8g8]} Qf2+ {[%emt 0:00:37]} 47. Kd1 {[%emt 0:00:04][%csl Gc4][%cal Ra8g8]} Qf1+ {[%emt 0:00:05]} 48. Kd2 {[%emt 0:00:03] White really could win this.  Weighted Error Value: White=0.41/Black=0.21 (precise)} 1/2-1/2

[Event "26th Womens ECCC 2022"]
[Site "Mayrhofen"]
[Date "2022.10.09"]
[Round "7.17"]
[White "Mammadzada, Gunay"]
[Black "Eric, Jovana"]
[Result "1-0"]
[ECO "B90"]
[WhiteElo "2483"]
[BlackElo "2252"]
[Annotator "TA"]
[PlyCount "67"]
[EventDate "2022.10.03"]
[EventType "team-tourn"]
[EventCountry "AUT"]
[SourceTitle "playchess.com"]
[Source "ChessBase"]
[SourceQuality "1"]
[TimeControl "40/5400+30:1800+30"]

{[%evp 11,67,8,17,-19,-26,-24,-17,-33,-10,-60,0,0,0,0,0,6,5,-1,13,-35,-30,-41,0,0,0,0,68,64,149,152,153,129,169,152,155,165,218,154,352,350,356,284,528,477,392,495,520,508,497,478,612,608,585,558,29995,29996,29997,29998]} 1. e4 {[%emt 0:00:04]} c5 {[%emt 0:00:06]} 2. Nf3 {[%emt 0:00:12]} d6 {[%emt 0:00:11]} 3. d4 {[%emt 0:00:11]} cxd4 {[%emt 0:00:09]} 4. Nxd4 {[%emt 0:00:01]} Nf6 {[%emt 0:00:11]} 5. Nc3 {[%emt 0:00:13]} a6 {[%emt 0:00:10]} 6. Bd3 {[%emt 0:00:07]} g6 {[%emt 0:00:38]} 7. b3 {[%emt 0:07:20] B90: Sicilian Najdorf: Unusual White 6th moves, 6 Be3 Ng4 and 6 Be3 e5.} Bg7 {[%emt 0:02:05]} 8. Bb2 {[%emt 0:00:04]} O-O {[%emt 0:00:23] [#]} 9. Qd2 $146 {[%emt 0:07:38] The position is equal.} ({Predecessor:} 9. f3 Nc6 10. Nde2 Bd7 11. Qd2 Rc8 12. O-O-O b5 13. Kb1 {0-1 (13) Florez Herrera,O (1600)-Sierra,H (1487) Bogota 2019}) 9... Nbd7 {[%emt 0:04:18]} 10. Nd5 {[%emt 0:15:27]} (10. O-O $11) 10... Ne5 {[%emt 0:10:43]} (10... e5 $15 11. Nxf6+ Nxf6) 11. O-O $11 {[%emt 0:07:07]} Nxd3 {[%emt 0:02:36]} 12. Qxd3 {[%emt 0:00:28]} Nxd5 {[%emt 0:12:24]} 13. exd5 {[%emt 0:00:02]} Bd7 {[%emt 0:00:14]} 14. Rfe1 {[%emt 0:06:50]} Bf6 {[%emt 0:05:06]} 15. Re3 {[%emt 0:09:21]} (15. Rac1 $11) 15... Rc8 $15 {[%emt 0:03:26]} 16. a4 {[%emt 0:05:40]} Qc7 {[%emt 0:11:40][%cal Ob7b5]} (16... b5 $5) 17. a5 {[%emt 0:07:00]} Qc5 {[%emt 0:04:42]} 18. c4 {[%emt 0:00:36]} Rfe8 {[%emt 0:00:46]} (18... e5 $11 19. dxe6 fxe6) 19. Bc3 $14 {[%emt 0:02:05]} Kg7 {[%emt 0:06:29]} (19... e5 $14 20. dxe6 fxe6) 20. Rae1 $1 $16 {[%emt 0:01:20][%cal Oe3e7,Ba1e1,Be1e3,Be3f3,Bf3f6][%mdl 32] Strongly threatening Rxe7!} Kg8 {[%emt 0:01:50]} 21. Re4 {[%emt 0:06:19]} b5 {[%emt 0:09:14][%cal Rb5c4]} 22. axb6 $1 {[%emt 0:00:54]} Qxb6 {[%emt 0:00:06]} 23. h4 $1 {[%emt 0:02:58]} h5 {[%emt 0:05:38]} (23... Be5 $142 24. h5 Bf6) 24. R1e3 $1 $18 {[%emt 0:02:13]} Kh7 $2 {[%emt 0:02:06] [#] Loses the game.} (24... Qc5 $16 25. Ne6 Bxe6 26. dxe6 Bxc3 27. exf7+ (27. Qxc3 f5 $11) 27... Kxf7) 25. Rf4 $1 {[%emt 0:02:18]} Rf8 {[%emt 0:01:49]} 26. Ref3 {[%emt 0:02:13]} Bg4 $2 {[%emt 0:00:45]} (26... Qd8 27. Rg3 Qe8) 27. Rxf6 {[%emt 0:01:55]} exf6 {[%emt 0:00:04]} 28. Rxf6 {[%emt 0:00:03][%cal Od4e6] Black must now prevent Ne6!} Rce8 {[%emt 0:04:45] Prevents Ne6.} 29. f3 {[%emt 0:05:18][%cal Bf2f3,Bf3f4][%mdl 32]} Bd7 {[%emt 0:01:05]} 30. f4 {[%emt 0:01:29]} Re7 {[%emt 0:06:57]} (30... Kg7 $2 {[#]} 31. Kh1 $1 Kh7 32. Nf3) 31. Kh2 {[%emt 0:01:16]} Rg8 {[%emt 0:00:44]} 32. Nf3 {[%emt 0:00:31]} Rf8 {[%emt 0:01:08]} 33. Ng5+ {[%emt 0:00:06]} Kg8 {[%emt 0:00:44] [#]} 34. Rxg6+ $1 {[%emt 0:00:16][%mdl 576] Demolition.  Weighted Error Value: White=0.09 (flawless) /Black=0.59} 1-0

[Event "26th Womens ECCC 2022"]
[Site "Mayrhofen"]
[Date "2022.10.09"]
[Round "7.18"]
[White "Blagojevic, Tijana"]
[Black "Fataliyeva, Ulviyya"]
[Result "1/2-1/2"]
[ECO "B10"]
[WhiteElo "2266"]
[BlackElo "2422"]
[Annotator "TA"]
[PlyCount "91"]
[EventDate "2022.10.03"]
[EventType "team-tourn"]
[EventCountry "AUT"]
[SourceTitle "playchess.com"]
[Source "ChessBase"]
[SourceQuality "1"]
[TimeControl "40/5400+30:1800+30"]

{[%evp 10,91,39,32,35,31,35,32,52,45,46,48,47,58,54,28,35,29,27,35,32,10,7,0,0,-6,8,8,8,0,31,24,85,61,111,0,0,0,0,0,0,0,0,0,0,0,0,-95,-92,-103,-100,-105,-100,-93,-8,-91,-98,-91,0,0,0,0,0,0,0,0,0,0,0,0,0,0,0,0,0,0,0,0,0,0,0,0,0,0]} 1. e4 {[%emt 0:00:03]} c6 {[%emt 0:00:05]} 2. Nf3 {[%emt 0:00:08]} d5 {[%emt 0:00:04]} 3. d3 {[%emt 0:00:07]} g6 {[%emt 0:00:19]} 4. e5 {[%emt 0:00:27]} Bg7 {[%emt 0:00:15]} 5. d4 {[%emt 0:00:22]} c5 {[%emt 0:01:54]} 6. c3 {[%emt 0:03:36]} (6. dxc5 $5 {[%cal Rb1c3]} Nc6 7. Bb5 $14 (7. Nc3 Bg4 $14)) 6... Nc6 {[%emt 0:01:30] B06: Modern Defence.} 7. Bb5 {[%emt 0:01:09]} Qb6 {[%emt 0:01:35]} 8. Bxc6+ {[%emt 0:00:13]} bxc6 {[%emt 0:02:11] White is slightly better.} 9. O-O {[%emt 0:00:34]} Nh6 {[%emt 0:07:44]} 10. Nbd2 {[%emt 0:04:29]} cxd4 {[%emt 0:02:54]} 11. cxd4 {[%emt 0:03:25]} O-O {[%emt 0:01:50]} 12. Nb3 {[%emt 0:00:34] [#]} Bg4 $146 {[%emt 0:01:47]} ({Predecessor:} 12... f6 13. exf6 exf6 14. Bf4 a5 15. Qd2 Nf5 16. h3 g5 17. Bh2 h5 18. Qc3 g4 19. hxg4 hxg4 {1-0 (48) Paichadze,L (2566)-Petriashvili,N (2418) Tbilisi 2022}) 13. h3 {[%emt 0:04:19]} Bxf3 {[%emt 0:00:08]} 14. Qxf3 {[%emt 0:00:04]} f6 {[%emt 0:01:35]} 15. exf6 {[%emt 0:07:51]} Rxf6 {[%emt 0:00:26]} 16. Qd3 {[%emt 0:02:44]} Nf5 {[%emt 0:02:36]} 17. Bd2 {[%emt 0:00:46]} Rf7 {[%emt 0:02:08][%cal Rf5d4]} 18. Bc3 {[%emt 0:00:21]} a5 {[%emt 0:04:07]} 19. Rac1 {[%emt 0:07:13]} Nd6 {[%emt 0:24:55]} 20. Nc5 {[%emt 0:04:33]} Nb5 {[%emt 0:00:07]} (20... e5 $11) 21. a4 {[%emt 0:03:01]} Nc7 {[%emt 0:04:27]} (21... Nxc3 $14 22. Qxc3 Re8) 22. Rc2 {[%emt 0:03:10]} ({White should play} 22. f4 $16) 22... e5 $1 $11 {[%emt 0:07:56]} 23. dxe5 {[%emt 0:06:21] [#] Strongly threatening e6.} Qxc5 {[%emt 0:00:20]} 24. e6 $1 {[%emt 0:00:06]} Nxe6 {[%emt 0:01:06]} 25. Bxg7 {[%emt 0:00:04]} Qb4 {[%emt 0:05:51]} 26. Be5 {[%emt 0:00:27]} Rf5 {[%emt 0:02:38]} 27. f4 {[%emt 0:02:49]} Qxa4 {[%emt 0:02:18][%cal Re6f4]} 28. Rfc1 {[%emt 0:01:15]} (28. g3 $11) 28... Nxf4 $17 {[%emt 0:06:18]} 29. Bxf4 {[%emt 0:00:14]} Qxf4 {[%emt 0:00:29]} 30. Rxc6 {[%emt 0:00:09]} Qf2+ {[%emt 0:01:04]} 31. Kh1 {[%emt 0:00:26]} Qxb2 {[%emt 0:03:43]} (31... Re8 $17 {aiming for ...Re3.} 32. R6c2 Re1+ 33. Rxe1 Qxe1+ 34. Kh2 a4) 32. g4 {[%emt 0:03:09]} (32. Rc8+ $11 {keeps the balance.} Rxc8 33. Rxc8+ Rf8 34. Qxd5+ Kg7 35. Rc7+ Kh6 36. Kh2) 32... Rf7 {[%emt 0:08:29] Hoping for ...Rd8.} 33. Qxd5 {[%emt 0:00:14] [#] And now Rc7 would win.} Kg7 {[%emt 0:00:55]} (33... Raf8 $17 34. Rc7 Qe2) 34. Rc7 $11 {[%emt 0:04:48] The position is equal.} Raf8 {[%emt 0:00:09]} 35. Qxa5 {[%emt 0:00:14]} Kh6 {[%emt 0:01:34] ( -> ...Rf1+)} 36. Qe1 {[%emt 0:03:34] Prevents Rf1+.} Qd4 {[%emt 0:02:20]} 37. Rd1 {[%emt 0:02:43]} Rf1+ {[%emt 0:00:33]} 38. Qxf1 {[%emt 0:00:14]} Rxf1+ {[%emt 0:00:05]} 39. Rxf1 {[%emt 0:00:03][%mdl 4096] Endgame KQ-KRR} Qe4+ {[%emt 0:00:30]} 40. Kg1 {[%emt 0:00:13]} Qe3+ {[%emt 0:00:39]} 41. Kg2 {[%emt 0:31:17]} Qe4+ {[%emt 0:30:42]} 42. Rf3 {[%emt 0:01:48]} Qe2+ {[%emt 0:00:09]} 43. Rf2 {[%emt 0:00:54]} Qe4+ {[%emt 0:00:02]} 44. Rf3 {[%emt 0:00:53]} Qe2+ {[%emt 0:00:04]} 45. Rf2 {[%emt 0:00:03]} Qe4+ {[%emt 0:00:03]} 46. Rf3 {[%emt 0:00:04] Weighted Error Value: White=0.14 (very precise) /Black=0.12 (very precise)} 1/2-1/2